bitfinex/quotes_SOLUSD_20241126
["timestamp","ask_amount","ask_price","bid_price","bid_amount"]
[1732627797793,26.42322181,228.19,228.13,26.42322181]
[1732627798000,26.42322181,228.2,228.13,26.42322181]
[1732627798709,26.42322181,228.19,228.12,30.80672181]
[1732627799088,26.42322181,228.2,228.13,26.42322181]
[1732627799421,26.42322181,228.19,228.12,30.80672181]
[1732627800213,26.42322181,228.16,228.09,30.80742181]
[1732627800386,99.3,228.18,228.07,4.3844]
[1732627800592,26.42322181,228.08,228.01,32.98932181]
[1732627800814,26.42322181,228.07,228.01,6.5661]
[1732627800995,20.0,228.13,228.01,32.98932181]
[1732627801199,20.0,228.11,228.01,10.9518]
[1732627802114,26.42322181,228.1,228.02,26.42322181]
[1732627802304,26.42322181,228.1,228.03,26.42322181]
[1732627802503,26.42322181,228.1,228.02,26.42322181]
[1732627802907,26.42322181,228.07,228.01,6.5661]
[1732627803909,26.42322181,228.06,228.0,452.36362864]
[1732627804091,26.42322181,228.04,228.0,452.36362864]
[1732627804293,26.42322181,228.01,228.0,452.36362864]
[1732627805108,23.776884,228.01,228.0,452.36362864]
[1732627805429,50.20010581,228.01,228.0,452.36362864]
[1732627805627,55.20010581,228.01,228.0,452.36362864]
[1732627805804,147.20670581,228.01,228.0,346.74544296]
[1732627806309,151.59240581,228.01,228.0,346.74544296]
[1732627806714,76.59240581,228.01,228.0,346.74544296]
[1732627806934,81.59240581,228.01,228.0,346.74544296]
[1732627807105,151.59240581,228.01,228.0,346.74544296]
[1732627807302,151.59240581,228.01,228.0,301.53323537]
[1732627807507,151.59240581,228.01,228.0,284.86663537]
[1732627807508,169.2481105,228.01,228.0,284.86663537]
[1732627807723,165.98603154,228.01,228.0,251.48907965]
[1732627808027,165.98603154,228.01,228.0,205.41277965]
[1732627808028,166.42705836,228.01,228.0,205.41277965]
[1732627808215,171.52621311,228.01,228.0,187.11997965]
[1732627808417,171.52621311,228.01,228.0,172.38877965]
[1732627808620,167.91555836,228.01,228.0,66.77059397]
[1732627808800,171.87287977,228.01,228.0,66.77059397]
[1732627809005,171.87287977,228.01,228.0,53.86639397]
[1732627809320,45.43360603,227.97,227.88,0.5104813]
[1732627809505,26.42322181,227.98,227.88,0.5104813]
[1732627809704,51.3,228.0,227.95,26.42322181]
[1732627809905,94.72436142,228.01,227.89,39.150384]
[1732627810234,12.61543961,228.01,227.98,26.42322181]
[1732627810728,12.61543961,228.01,227.96,26.42322181]
[1732627810942,12.61543961,228.01,227.92,4.3873]
[1732627810943,12.61543961,228.01,228.0,50.20010581]
[1732627811140,7.68290551,228.06,228.01,23.776884]
[1732627811421,7.68290551,228.06,228.05,50.20010581]
[1732627812205,7.68290551,228.06,228.05,65.57360581]
[1732627812511,12.60743858,228.17,228.06,23.776884]
[1732627812711,12.60743858,228.17,228.16,50.20010581]
[1732627812926,12.60743858,228.17,228.12,26.42322181]
[1732627813220,12.60743858,228.17,228.06,23.776884]
[1732627813429,26.42322181,228.16,228.09,26.42322181]
[1732627813729,26.42322181,228.14,228.06,23.776884]
[1732627813904,26.42322181,228.15,228.08,26.42322181]
[1732627814105,16.99023858,228.17,228.05,15.3735]
[1732627814106,20.0,228.1,228.05,15.3735]
[1732627814511,20.0,228.1,228.06,26.42322181]
[1732627814705,20.0,228.1,228.07,26.42322181]
[1732627814916,20.0,228.09,228.05,41.79672181]
[1732627815115,20.0,228.08,228.03,26.42322181]
[1732627815306,20.0,228.08,227.98,1.51212987]
[1732627815307,20.0,228.06,227.99,26.42322181]
[1732627815508,20.0,228.04,227.99,26.42322181]
[1732627815706,20.0,228.04,228.02,26.42322181]
[1732627815930,51.3,228.12,228.03,26.42322181]
[1732627816223,20.0,228.09,228.07,26.42322181]
[1732627816430,20.0,228.09,227.98,1.51212987]
[1732627816635,20.0,228.09,228.06,26.42322181]
[1732627816805,28.56453858,228.17,228.08,26.42322181]
[1732627816806,4.3829,228.16,228.08,26.42322181]
[1732627817006,39.03066039,228.17,228.12,26.42322181]
[1732627817007,68.29013858,228.17,228.12,26.42322181]
[1732627817211,68.29013858,228.17,228.1,26.42322181]
[1732627817412,4.3827,228.17,228.1,26.42322181]
[1732627817903,4.3827,228.17,228.08,26.42322181]
[1732627817904,82.10592181,228.17,228.08,26.42322181]
[1732627818123,20.0,228.11,228.06,26.42322181]
[1732627818428,51.3,228.16,227.97,5.0]
[1732627818429,20.0,228.13,228.08,26.42322181]
[1732627820229,24.3835,228.13,228.06,26.42322181]
[1732627820408,20.0,228.09,228.05,23.776884]
[1732627820613,20.0,228.09,228.03,23.776884]
[1732627820814,26.42322181,228.08,228.0,32.32101904]
[1732627821016,20.0,228.03,228.0,1.51199723]
[1732627821214,26.42322181,228.02,228.0,1.51199723]
[1732627821625,26.42322181,228.01,228.0,1.51199723]
[1732627821935,26.42322181,228.03,228.0,1.51199723]
[1732627822114,20.0,228.01,228.0,1.51199723]
[1732627822967,26.42322181,228.08,228.0,51.71210304]
[1732627823121,26.42322181,228.07,228.01,23.776884]
[1732627823511,26.42322181,228.08,228.01,23.776884]
[1732627823740,30.80752181,228.09,228.01,50.20010581]
[1732627824112,30.80752181,228.09,228.01,23.776884]
[1732627824113,26.42322181,228.08,228.01,23.776884]
[1732627824313,26.42322181,228.1,228.03,50.20010581]
[1732627824512,26.42322181,228.11,228.04,26.42322181]
[1732627824731,82.10672181,228.13,228.05,26.42322181]
[1732627825037,26.42322181,228.07,228.0,1.51199723]
[1732627825341,26.42322181,228.05,228.0,1.51199723]
[1732627825640,20.0,228.02,228.0,1.51199723]
[1732627825934,20.0,228.01,228.0,1.51199723]
[1732627828416,20.0,227.99,227.88,31.32180311]
[1732627828739,46.42322181,227.97,227.9,30.81102181]
[1732627828918,20.0,227.98,227.94,26.42322181]
[1732627829120,20.0,227.98,227.92,26.42322181]
[1732627829519,26.42322181,227.99,227.92,26.42322181]
[1732627830024,26.42322181,227.99,227.9,4.3878]
[1732627830025,20.0,227.96,227.9,30.81102181]
[1732627830527,20.0,227.96,227.92,26.42322181]
[1732627831237,26.42322181,228.01,227.93,23.776884]
[1732627831418,20.0,227.98,227.93,23.776884]
[1732627832040,20.0,227.98,227.93,28.163984]
[1732627833045,26.42322181,227.95,227.88,0.5104813]
[1732627833250,26.42322181,227.95,227.88,4.8986813]
[1732627833440,26.42322181,227.95,227.88,31.32190311]
[1732627833638,26.42322181,227.95,227.88,26.93370311]
[1732627833850,20.0,227.92,227.88,26.93370311]
[1732627834321,20.0,227.92,227.89,23.776884]
[1732627834926,30.80992181,227.97,227.9,26.42322181]
[1732627835246,20.0,227.96,227.93,26.42322181]
[1732627835462,26.42322181,228.01,227.95,23.776884]
[1732627835742,26.42322181,227.99,227.93,23.776884]
[1732627835923,26.42322181,228.0,227.93,23.776884]
[1732627836124,26.42322181,227.98,227.91,23.776884]
[1732627836650,12.0702261,228.02,227.94,50.20010581]
[1732627836953,38.49344791,228.02,227.94,50.20010581]
[1732627837831,20.0,227.99,227.94,50.20010581]
[1732627838637,20.0,227.99,227.94,23.776884]
[1732627839255,20.0,227.97,227.92,26.42322181]
[1732627839443,20.0,227.93,227.88,0.5104813]
[1732627839627,20.0,227.89,227.88,0.5104813]
[1732627839835,24.388,227.89,227.88,0.5104813]
[1732627841444,20.0,227.89,227.88,0.5104813]
[1732627841759,51.3,227.94,227.88,31.32190311]
[1732627841961,26.42322181,227.95,227.89,23.776884]
[1732627842255,51.3,227.98,227.89,23.776884]
[1732627842256,26.42322181,227.97,227.89,50.20010581]
[1732627842755,51.3,227.98,227.92,23.776884]
[1732627842946,30.80932181,227.99,227.92,23.776884]
[1732627843256,82.10892181,228.01,227.93,26.42322181]
[1732627843570,51.3,228.01,227.97,26.42322181]
[1732627843858,7.6846261,228.02,228.01,23.776884]
[1732627844663,7.6846261,228.02,227.98,26.42322181]
[1732627844836,7.6846261,228.02,227.97,23.776884]
[1732627845043,26.42322181,228.01,227.95,23.776884]
[1732627845241,7.6846261,228.02,227.95,23.776884]
[1732627845445,7.6846261,228.02,227.97,23.776884]
[1732627847151,30.80892181,228.01,227.94,26.42322181]
[1732627847353,26.42322181,227.99,227.94,23.776884]
[1732627847747,4.3857,228.01,227.93,6.6203]
[1732627847748,20.0,227.94,227.93,6.6203]
[1732627848760,20.0,227.94,227.92,15.936]
[1732627850439,24.3871,227.94,227.89,23.776884]
[1732627850646,20.0,227.94,227.89,23.776884]
[1732627850961,20.0,227.92,227.89,23.776884]
[1732627852970,20.0,227.92,227.89,28.164884]
[1732627853270,20.0,227.92,227.89,23.776884]
[1732627856765,20.0,227.92,227.89,50.20010581]
[1732627856969,51.3,227.97,227.92,23.776884]
[1732627857150,51.3,227.97,227.92,50.20010581]
[1732627857769,26.42322181,228.0,227.94,23.776884]
[1732627857972,26.42322181,228.0,227.93,23.776884]
[1732627858152,34.10784791,228.02,227.95,23.776884]
[1732627858469,34.10784791,228.02,227.96,23.776884]
[1732627858842,20.0,227.99,227.96,23.776884]
[1732627859270,20.0,227.98,227.94,23.776884]
[1732627859650,20.0,227.97,227.9,26.42322181]
[1732627859957,20.0,227.97,227.94,26.42322181]
[1732627860465,7.6846261,228.02,227.88,11.2062813]
[1732627860466,7.6846261,228.02,227.96,26.42322181]
[1732627860668,7.6846261,228.02,227.93,4.3873]
[1732627860839,7.6846261,228.02,228.01,50.20010581]
[1732627861268,7.6846261,228.02,227.89,16.151]
[1732627861458,7.6846261,228.02,227.95,50.20010581]
[1732627861856,7.6846261,228.02,227.97,26.42322181]
[1732627862150,7.6846261,228.02,227.99,26.42322181]
[1732627862467,7.6846261,228.02,227.99,23.776884]
[1732627862943,7.6846261,228.02,227.98,23.776884]
[1732627863345,7.6846261,228.02,228.0,26.42322181]
[1732627863545,7.6846261,228.02,228.01,50.20010581]
[1732627863748,7.6846261,228.02,228.01,56.50770581]
[1732627864359,7.6846261,228.02,228.01,72.65870581]
[1732627864669,30.80562181,228.19,228.02,23.776884]
[1732627864847,30.80562181,228.19,228.01,80.30504362]
[1732627864848,26.42322181,228.16,228.11,23.776884]
[1732627865170,3.27205207,228.15,228.08,50.20010581]
[1732627865466,3.27205207,228.15,228.08,23.776884]
[1732627865649,3.27205207,228.15,228.08,50.20010581]
[1732627865849,20.0,228.13,228.08,50.20010581]
[1732627866347,30.04649674,228.23,228.02,15.3494]
[1732627866348,20.0,228.18,228.11,26.42322181]
[1732627866552,20.0,228.16,228.12,23.776884]
[1732627866955,20.0,228.14,228.1,23.776884]
[1732627867370,26.42322181,228.22,228.14,29.808584]
[1732627867669,26.42322181,228.26,228.2,23.776884]
[1732627867850,3.26651499,228.25,228.2,23.776884]
[1732627868252,26.42322181,228.26,228.2,23.776884]
[1732627868753,26.42322181,228.27,228.2,23.776884]
[1732627868949,26.42322181,228.26,228.2,23.776884]
[1732627869151,26.42322181,228.21,228.16,23.776884]
[1732627869354,26.42322181,228.21,228.15,23.776884]
[1732627869568,26.42322181,228.22,228.15,23.776884]
[1732627869752,26.42322181,228.2,228.15,23.776884]
[1732627869948,51.3,228.24,228.14,6.0317]
[1732627870165,20.0,228.21,228.1,23.776884]
[1732627870454,4.3808,228.27,228.03,15.5452]
[1732627870455,20.0,228.17,228.03,15.5452]
[1732627870769,20.0,228.13,228.03,15.5452]
[1732627870972,56.3,228.16,228.02,6.0317]
[1732627870973,30.80782181,228.07,228.02,6.0317]
[1732627871152,20.0,228.09,228.03,26.42322181]
[1732627871349,26.42322181,228.15,228.08,26.42322181]
[1732627871547,20.0,228.13,228.03,26.42322181]
[1732627871784,20.0,228.12,228.02,10.4172]
[1732627871950,20.0,228.12,228.07,26.42322181]
[1732627872148,20.0,228.14,228.07,26.42322181]
[1732627872348,20.0,228.13,228.1,23.776884]
[1732627872548,12.60563761,228.19,228.03,50.20010581]
[1732627872549,12.60563761,228.19,228.12,50.20010581]
[1732627872777,12.60563761,228.19,228.14,26.42322181]
[1732627872952,12.60563761,228.19,228.15,26.42322181]
[1732627873164,12.60563761,228.19,228.17,23.776884]
[1732627873665,12.60563761,228.19,228.15,23.776884]
[1732627874175,12.60563761,228.19,228.18,50.20010581]
[1732627875159,30.80422181,228.26,228.18,50.20010581]
[1732627875383,20.0,228.23,228.18,50.20010581]
[1732627875582,26.42322181,228.2,228.12,26.42322181]
[1732627875757,26.42322181,228.2,228.13,26.42322181]
[1732627876068,20.0,228.22,228.15,23.776884]
[1732627876374,20.0,228.22,228.18,23.776884]
[1732627876553,26.42322181,228.26,228.18,23.776884]
[1732627876749,26.42322181,228.26,228.2,23.776884]
[1732627876978,26.42322181,228.25,228.2,23.776884]
[1732627877275,26.42322181,228.25,228.18,23.776884]
[1732627877476,26.42322181,228.28,228.21,50.20010581]
[1732627877680,12.59849033,228.33,228.26,26.42322181]
[1732627877973,12.59849033,228.33,228.26,23.776884]
[1732627878482,12.59849033,228.33,228.28,26.42322181]
[1732627878683,12.59849033,228.33,228.28,23.776884]
[1732627878978,26.42322181,228.32,228.26,23.776884]
[1732627879396,26.42322181,228.28,228.21,23.776884]
[1732627879687,4.3798,228.32,228.19,6.2544]
[1732627879688,26.42322181,228.22,228.19,6.2544]
[1732627879884,56.3,228.31,228.13,21.6103]
[1732627880057,26.42322181,228.16,228.13,6.2544]
[1732627880563,26.42322181,228.17,228.13,6.2544]
[1732627880767,20.0,228.12,228.07,15.3559]
[1732627881070,30.80762181,228.08,228.0,15.3559]
[1732627881270,4.3844,228.08,228.0,15.3559]
[1732627881464,20.0,228.08,228.0,15.3559]
[1732627881665,37.38132181,228.14,228.0,15.3559]
[1732627881666,20.0,228.07,228.0,15.3559]
[1732627882060,51.3,228.15,228.0,19.7418]
[1732627882280,70.0,228.21,228.03,5.0]
[1732627882281,20.0,228.21,228.03,5.0]
[1732627882487,26.42322181,228.22,228.15,26.42322181]
[1732627882782,26.42322181,228.25,228.18,23.776884]
[1732627883007,26.42322181,228.23,228.16,26.42322181]
[1732627883280,51.3,228.24,228.17,26.42322181]
[1732627883460,26.42322181,228.26,228.19,50.20010581]
[1732627883663,4.3807,228.28,228.19,23.776884]
[1732627883883,26.42322181,228.21,228.15,32.67762181]
[1732627884176,51.3,228.27,228.16,26.42322181]
[1732627884381,15.3321,228.28,228.15,6.2544]
[1732627884382,26.42322181,228.26,228.19,23.776884]
[1732627884688,20.0,228.23,228.19,50.20010581]
[1732627884880,20.0,228.22,228.18,23.776884]
[1732627885382,26.42322181,228.21,228.15,6.2544]
[1732627885582,20.0,228.22,228.05,5.0]
[1732627885583,26.42322181,228.17,228.09,26.42322181]
[1732627885771,26.42322181,228.15,228.09,26.42322181]
[1732627885968,26.42322181,228.15,228.08,6.2544]
[1732627886170,26.42322181,228.16,228.09,26.42322181]
[1732627886978,20.0,228.13,228.08,6.2544]
[1732627887370,26.42322181,228.1,228.08,6.2544]
[1732627887575,26.42322181,228.11,228.03,26.42322181]
[1732627887881,50.80672181,228.13,228.05,26.42322181]
[1732627888064,26.42322181,228.11,228.03,26.42322181]
[1732627888475,20.0,228.08,228.04,26.42322181]
[1732627888880,26.42322181,228.17,228.07,26.42322181]
[1732627889068,20.0,228.13,228.1,26.42322181]
[1732627889389,51.3,228.17,228.11,26.42322181]
[1732627889592,20.0,228.15,228.1,26.42322181]
[1732627889765,20.0,228.16,228.12,50.20010581]
[1732627889965,30.80532181,228.2,228.12,50.20010581]
[1732627890182,26.42322181,228.2,228.13,26.42322181]
[1732627890791,26.42322181,228.16,228.09,26.42322181]
[1732627890962,26.42322181,228.18,228.1,26.42322181]
[1732627891168,26.42322181,228.21,228.13,26.42322181]
[1732627891382,5.0,228.29,228.08,23.776884]
[1732627891383,51.3,228.26,228.09,23.776884]
[1732627891575,51.3,228.27,228.09,23.776884]
[1732627892068,51.3,228.3,228.14,23.70741579]
[1732627892293,55.6799,228.32,228.14,23.70741579]
[1732627892662,26.42322181,228.24,228.17,26.42322181]
[1732627892864,26.42322181,228.23,228.16,26.42322181]
[1732627893086,26.42322181,228.23,228.15,26.42322181]
[1732627893661,4.3814,228.24,228.14,23.70741579]
[1732627893662,26.42322181,228.24,228.17,26.42322181]
[1732627893882,26.42322181,228.21,228.14,23.70741579]
[1732627894086,26.42322181,228.18,228.14,23.70741579]
[1732627894381,20.0,228.18,228.16,26.42322181]
[1732627894581,20.0,228.18,228.17,23.776884]
[1732627894777,26.42322181,228.24,228.17,50.20010581]
[1732627894989,20.0,228.2,228.15,50.20010581]
[1732627895569,51.3,228.29,228.13,19.7393]
[1732627895570,26.42322181,228.24,228.17,26.42322181]
[1732627895884,20.0,228.21,228.17,23.776884]
[1732627896063,26.42322181,228.24,228.17,50.20010581]
[1732627896392,20.0,228.21,228.17,23.776884]
[1732627897176,20.0,228.21,228.14,26.42322181]
[1732627897585,20.0,228.21,228.15,23.776884]
[1732627897787,20.0,228.21,228.16,26.42322181]
[1732627898025,20.0,228.21,228.15,50.20010581]
[1732627898377,20.0,228.21,228.17,50.20010581]
[1732627898695,20.0,228.21,228.17,26.42322181]
[1732627899195,20.0,228.21,228.13,15.3559]
[1732627899196,26.42322181,228.21,228.13,41.77912181]
[1732627899487,20.0,228.18,228.16,23.776884]
[1732627899693,26.42322181,228.24,228.16,50.20010581]
[1732627899867,30.80422181,228.26,228.18,26.42322181]
[1732627900067,20.0,228.23,228.19,23.776884]
[1732627900267,26.42322181,228.28,228.21,26.42322181]
[1732627900489,51.3,228.3,228.16,28.159584]
[1732627900490,77.72322181,228.3,228.23,26.42322181]
[1732627900692,51.3,228.37,228.27,26.42322181]
[1732627900991,4.3794,228.34,228.27,26.42322181]
[1732627901200,26.42322181,228.37,228.3,26.42322181]
[1732627901403,4.3789,228.37,228.3,26.42322181]
[1732627901692,30.80222181,228.36,228.28,26.42322181]
[1732627902392,20.0,228.3,228.27,6.3453]
[1732627902871,20.0,228.29,228.27,6.3453]
[1732627903580,12.59849033,228.33,228.28,26.42322181]
[1732627903782,12.59849033,228.33,228.28,23.776884]
[1732627904476,20.0,228.29,228.14,37.38112181]
[1732627904793,26.42322181,228.23,228.16,26.42322181]
[1732627904996,26.42322181,228.22,228.15,6.3453]
[1732627905174,26.42322181,228.18,228.15,6.3453]
[1732627905370,20.0,228.27,228.15,6.3453]
[1732627905580,20.0,228.18,228.15,6.3453]
[1732627906575,26.42322181,228.18,228.15,6.3453]
[1732627906988,26.42322181,228.16,228.09,6.0046]
[1732627907186,4.3825,228.18,228.09,6.0046]
[1732627907187,46.42322181,228.17,228.09,32.42782181]
[1732627907391,20.0,228.17,228.11,26.42322181]
[1732627907591,20.0,228.14,228.11,26.42322181]
[1732627907981,20.0,228.18,228.13,26.42322181]
[1732627908313,20.0,228.18,228.14,23.776884]
[1732627908907,26.42322181,228.21,228.15,23.776884]
[1732627909088,20.0,228.18,228.15,23.776884]
[1732627909293,20.0,228.18,228.16,26.42322181]
[1732627909509,20.0,228.22,228.16,26.42322181]
[1732627909686,20.0,228.21,228.16,26.42322181]
[1732627909886,20.0,228.21,228.18,26.42322181]
[1732627910101,30.80372181,228.29,228.21,23.776884]
[1732627910284,30.80372181,228.29,228.2,26.42322181]
[1732627910285,77.72322181,228.32,228.24,26.42322181]
[1732627910603,51.3,228.32,228.27,26.42322181]
[1732627910783,51.3,228.32,228.26,26.42322181]
[1732627911095,51.3,228.32,228.27,23.776884]
[1732627911301,12.59849033,228.33,228.27,23.776884]
[1732627911505,12.59849033,228.33,228.28,23.776884]
[1732627911809,12.59849033,228.33,228.24,6.0037]
[1732627911810,26.42322181,228.31,228.24,32.42692181]
[1732627912013,12.59849033,228.33,228.27,26.42322181]
[1732627912307,39.02171214,228.33,228.28,23.776884]
[1732627912618,12.59849033,228.33,228.26,50.20010581]
[1732627912784,12.59849033,228.33,228.29,23.776884]
[1732627912991,39.02171214,228.33,228.29,23.776884]
[1732627913207,39.02171214,228.33,228.28,23.776884]
[1732627913509,39.02171214,228.33,228.27,23.776884]
[1732627914200,12.59849033,228.33,228.29,23.776884]
[1732627914789,12.59849033,228.33,228.27,50.20010581]
[1732627915093,12.59849033,228.33,228.27,23.776884]
[1732627915990,12.59849033,228.33,228.28,23.776884]
[1732627916885,26.42322181,228.3,228.24,6.0037]
[1732627917085,26.42322181,228.29,228.24,6.0037]
[1732627917300,26.42322181,228.32,228.24,32.42692181]
[1732627917500,16.97809033,228.33,228.24,32.42692181]
[1732627917501,26.42322181,228.3,228.24,6.0037]
[1732627918111,20.0,228.25,228.23,0.46677023]
[1732627918302,20.0,228.24,228.23,0.46677023]
[1732627919906,12.59849033,228.33,228.24,23.776884]
[1732627919907,50.80352181,228.3,228.24,23.776884]
[1732627920212,46.42322181,228.3,228.24,23.776884]
[1732627920407,63.89849033,228.33,228.27,50.20010581]
[1732627920408,12.59849033,228.33,228.27,50.20010581]
[1732627920611,12.59849033,228.33,228.27,26.42322181]
[1732627920799,12.59849033,228.33,228.28,23.776884]
[1732627921005,43.40141214,228.33,228.25,26.42322181]
[1732627921206,26.42322181,228.31,228.24,26.42322181]
[1732627921410,26.42322181,228.31,228.25,23.776884]
[1732627921606,43.40141214,228.33,228.25,23.776884]
[1732627921806,20.0,228.3,228.26,26.42322181]
[1732627922115,12.59849033,228.33,228.29,26.42322181]
[1732627922409,12.59849033,228.33,228.3,23.776884]
[1732627923013,39.02171214,228.33,228.25,26.42322181]
[1732627923208,12.59849033,228.33,228.27,26.42322181]
[1732627923400,12.59849033,228.33,228.24,23.776884]
[1732627923401,12.59849033,228.33,228.28,23.776884]
[1732627923709,12.59849033,228.33,228.27,23.776884]
[1732627924099,12.59849033,228.33,228.27,50.20010581]
[1732627924500,12.59849033,228.33,228.26,50.20010581]
[1732627924501,39.02171214,228.33,228.26,50.20010581]
[1732627925296,12.59849033,228.33,228.29,26.42322181]
[1732627925619,7.67350163,228.38,228.32,50.20010581]
[1732627925814,7.67350163,228.38,228.37,50.20010581]
[1732627926289,7.67350163,228.38,228.34,4.3792]
[1732627926290,7.67350163,228.38,228.35,23.776884]
[1732627926488,12.05220163,228.38,228.26,6.0037]
[1732627926916,12.05220163,228.38,228.06,21.9235]
[1732627926917,12.05220163,228.38,228.16,5.0]
[1732627927113,20.0,228.34,228.17,10.3863]
[1732627927300,20.0,228.3,228.17,6.0037]
[1732627927506,26.42322181,228.21,228.17,6.0037]
[1732627927816,20.0,228.15,228.11,6.2694]
[1732627928030,46.42322181,228.15,228.07,26.42322181]
[1732627928212,26.42322181,228.15,228.08,26.42322181]
[1732627928516,20.0,228.18,228.14,26.42322181]
[1732627928811,51.3,228.29,228.17,26.42322181]
[1732627928812,26.42322181,228.24,228.17,26.42322181]
[1732627929009,20.0,228.21,228.17,26.42322181]
[1732627929212,20.0,228.21,228.15,26.42322181]
[1732627929419,20.0,228.27,228.17,23.776884]
[1732627929605,4.3794,228.34,228.17,23.776884]
[1732627929811,4.3794,228.34,228.18,0.45916613]
[1732627930124,51.3,228.28,228.18,0.45916613]
[1732627930424,51.3,228.23,228.18,0.45916613]
[1732627930603,26.42322181,228.2,228.18,0.45916613]
[1732627931196,26.42322181,228.23,228.18,0.45916613]
[1732627931403,20.0,228.22,228.21,26.42322181]
[1732627931798,20.0,228.22,228.19,26.42322181]
[1732627932109,20.0,228.24,228.19,26.42322181]
[1732627932306,26.42322181,228.26,228.2,23.776884]
[1732627932504,26.42322181,228.27,228.2,50.20010581]
[1732627932704,26.42322181,228.24,228.18,0.45916613]
[1732627932909,26.42322181,228.25,228.18,26.88238794]
[1732627933212,55.6802,228.3,228.19,50.20010581]
[1732627933512,20.0,228.23,228.18,24.23605013]
[1732627933717,20.0,228.23,228.18,0.45916613]
[1732627934016,20.0,228.22,228.2,23.776884]
[1732627934208,20.0,228.22,228.18,24.23605013]
[1732627934800,46.42322181,228.22,228.18,0.45916613]
[1732627935002,26.42322181,228.23,228.18,0.45916613]
[1732627935201,20.0,228.2,228.18,0.45916613]
[1732627935544,20.0,228.2,228.18,24.23605013]
[1732627935712,20.0,228.2,228.18,0.45916613]
[1732627935713,26.42322181,228.2,228.18,0.45916613]
[1732627936321,4.3823,228.19,228.18,0.45916613]
[1732627936816,4.3823,228.19,228.06,15.3796]
[1732627936817,20.0,228.16,228.06,19.7643]
[1732627937031,26.42322181,228.1,228.06,15.3796]
[1732627937217,26.42322181,228.1,228.05,6.2694]
[1732627937404,26.42322181,228.07,228.05,6.2694]
[1732627937600,20.0,228.16,228.05,6.2694]
[1732627937601,26.42322181,228.08,228.05,6.2694]
[1732627938332,26.42322181,228.08,227.99,15.0231]
[1732627938333,26.42322181,228.06,227.99,15.0231]
[1732627938525,4.3844,228.08,227.99,15.0231]
[1732627938526,26.42322181,228.02,227.99,15.0231]
[1732627938725,26.42322181,228.0,227.98,6.6562]
[1732627939103,26.42322181,228.0,227.92,15.0231]
[1732627939329,51.3,228.06,227.92,15.0231]
[1732627939330,26.42322181,227.97,227.92,15.0231]
[1732627939620,26.42322181,227.99,227.92,15.0231]
[1732627940215,26.42322181,228.0,227.92,41.44632181]
[1732627940805,26.42322181,227.98,227.92,41.44632181]
[1732627941006,26.42322181,227.95,227.91,6.6562]
[1732627941611,26.42322181,227.94,227.91,6.6562]
[1732627942112,26.42322181,227.96,227.91,6.6562]
[1732627942311,20.0,227.95,227.92,26.42322181]
[1732627942507,26.42322181,227.99,227.92,26.42322181]
[1732627942712,26.42322181,227.98,227.91,6.6562]
[1732627943013,26.42322181,227.99,227.92,23.776884]
[1732627943219,26.42322181,228.0,227.93,26.42322181]
[1732627943419,55.6857,228.02,227.92,50.20010581]
[1732627943420,20.0,227.97,227.92,50.20010581]
[1732627943602,26.42322181,227.95,227.92,23.776884]
[1732627943807,46.42322181,227.97,227.92,23.776884]
[1732627944028,20.0,227.95,227.92,23.776884]
[1732627944220,46.42322181,227.97,227.91,6.6562]
[1732627944430,26.42322181,227.93,227.91,6.6562]
[1732627944604,26.42322181,227.93,227.88,0.5104813]
[1732627944935,20.0,227.9,227.88,0.5104813]
[1732627945426,26.42322181,227.89,227.88,0.5104813]
[1732627945735,26.42322181,227.9,227.88,0.5104813]
[1732627945932,46.42322181,227.89,227.88,0.5104813]
[1732627946422,50.81122181,227.89,227.88,0.5104813]
[1732627946734,25.0,227.85,227.72,15.0231]
[1732627946929,25.0,227.85,227.7,6.6562]
[1732627946930,26.42322181,227.73,227.7,6.6562]
[1732627947136,26.42322181,227.81,227.65,46.34940311]
[1732627947137,26.42322181,227.71,227.65,48.61300311]
[1732627947435,26.42322181,227.71,227.65,15.5335813]
[1732627947931,26.42322181,227.71,227.66,0.08914921]
[1732627948121,26.42322181,227.68,227.66,0.08914921]
[1732627948307,20.0,227.67,227.66,0.08914921]
[1732627948831,71.3,227.67,227.66,0.08914921]
[1732627950209,20.0,227.67,227.66,0.08914921]